[Event "Titled Tuesday Blitz January 10 Late 2023"]
[White "Souleidis, Georgios"]
[Black "Andrews, Todd"]
[WhiteFideId "4206827"]
[BlackFideId "2012456"]
[WhiteElo "2419"]
[BlackElo "2220"]
[Result "1-0"]
[Round "08"]
[TimeControl "180+2"]
[Date "2023.01.10"]
[WhiteClock "0:00:06"]
[BlackClock "0:00:04"]

1. e4 {[%clk 0:00:00]}  e6 {[%clk 0:00:00]} 2. d4 {[%clk 0:03:00]}  d5 {[%clk 0:03:00]} 3. Nc3 {[%clk 0:03:00]}  Bb4 {[%clk 0:03:00]} 4. exd5 {[%clk 0:03:00]}  exd5 {[%clk 0:03:00]} 5. Bd3 {[%clk 0:03:00]}  Nc6 {[%clk 0:02:59]} 6. Nf3 {[%clk 0:03:00]}  Nge7 {[%clk 0:03:00]} 7. O-O {[%clk 0:03:00]}  Bg4 {[%clk 0:02:58]} 8. a3 {[%clk 0:03:00]}  Bxc3 {[%clk 0:02:58]} 9. bxc3 {[%clk 0:02:59]}  Qd7 {[%clk 0:02:58]} 10. h3 {[%clk 0:03:00]}  Bf5 {[%clk 0:02:57]} 11. Re1 {[%clk 0:02:59]}  O-O {[%clk 0:02:57]} 12. Rb1 {[%clk 0:02:58]}  b6 {[%clk 0:02:54]} 13. Bf4 {[%clk 0:02:58]}  Ng6 {[%clk 0:02:52]} 14. Bxf5 {[%clk 0:02:56]}  Qxf5 {[%clk 0:02:49]} 15. Bxc7 {[%clk 0:02:54]}  Rac8 {[%clk 0:02:47]} 16. Bg3 {[%clk 0:02:55]}  Na5 {[%clk 0:02:42]} 17. Bd6 {[%clk 0:02:54]}  Rfd8 {[%clk 0:02:41]} 18. Bb4 {[%clk 0:02:32]}  Nc4 {[%clk 0:02:35]} 19. Nd2 {[%clk 0:02:30]}  Nd6 {[%clk 0:02:34]} 20. Nf1 {[%clk 0:02:20]}  Ne4 {[%clk 0:02:14]} 21. f3 {[%clk 0:01:53]}  Nxc3 {[%clk 0:02:03]} 22. Bxc3 {[%clk 0:01:36]}  Rxc3 {[%clk 0:01:55]} 23. Ne3 {[%clk 0:01:36]}  Qg5 {[%clk 0:01:56]} 24. Qd2 {[%clk 0:01:37]}  Rxa3 {[%clk 0:01:52]} 25. Ra1 {[%clk 0:01:35]}  Nh4 {[%clk 0:01:30]} 26. Qf2 {[%clk 0:01:35]}  Rxa1 {[%clk 0:01:25]} 27. Rxa1 {[%clk 0:01:24]}  a5 {[%clk 0:01:20]} 28. Rb1 {[%clk 0:01:24]}  Re8 {[%clk 0:01:11]} 29. f4 {[%clk 0:01:19]}  Qd8 {[%clk 0:00:58]} 30. f5 {[%clk 0:01:07]}  h5 {[%clk 0:00:52]} 31. c3 {[%clk 0:00:48]}  a4 {[%clk 0:00:44]} 32. f6 {[%clk 0:00:41]}  Qxf6 {[%clk 0:00:37]} 33. Qxf6 {[%clk 0:00:41]}  gxf6 {[%clk 0:00:31]} 34. Nxd5 {[%clk 0:00:41]}  Re2 {[%clk 0:00:32]} 35. Nxf6+ {[%clk 0:00:41]}  Kf8 {[%clk 0:00:31]} 36. Rxb6 {[%clk 0:00:36]}  a3 {[%clk 0:00:23]} 37. Ra6 {[%clk 0:00:36]}  a2 {[%clk 0:00:20]} 38. Ra8+ {[%clk 0:00:32]}  Kg7 {[%clk 0:00:20]} 39. Nxh5+ {[%clk 0:00:22]}  Kh6 {[%clk 0:00:19]} 40. Nf4 {[%clk 0:00:21]}  Rb2 {[%clk 0:00:18]} 41. Kh2 {[%clk 0:00:22]}  Kg5 {[%clk 0:00:17]} 42. Kg3 {[%clk 0:00:21]}  Nf5+ {[%clk 0:00:16]} 43. Kf3 {[%clk 0:00:19]}  Nh4+ {[%clk 0:00:13]} 44. Ke4 {[%clk 0:00:20]}  f5+ {[%clk 0:00:13]} 45. Ke3 {[%clk 0:00:20]}  Kf6 {[%clk 0:00:11]} 46. Ra6+ {[%clk 0:00:18]}  Ke7 {[%clk 0:00:07]} 47. d5 {[%clk 0:00:17]}  Kd7 {[%clk 0:00:08]} 48. c4 {[%clk 0:00:15]}  Nxg2+ {[%clk 0:00:08]} 49. Nxg2 {[%clk 0:00:16]}  Rxg2 {[%clk 0:00:05]} 50. c5 {[%clk 0:00:15]}  Rh2 {[%clk 0:00:06]} 51. Kf4 {[%clk 0:00:15]}  Rf2+ {[%clk 0:00:04]} 52. Ke5 {[%clk 0:00:14]}  Re2+ {[%clk 0:00:02]} 53. Kxf5 {[%clk 0:00:14]}  Rc2 {[%clk 0:00:03]} 54. Ra7+ {[%clk 0:00:14]}  Kd8 {[%clk 0:00:03]} 55. c6 {[%clk 0:00:14]}  Re2 {[%clk 0:00:03]} 56. d6 {[%clk 0:00:14]}  Rf2+ {[%clk 0:00:02]} 57. Ke6 {[%clk 0:00:13]}  Re2+ {[%clk 0:00:03]} 58. Kd5 {[%clk 0:00:13]}  Rd2+ {[%clk 0:00:04]} 59. Kc5 {[%clk 0:00:13]}  Rc2+ {[%clk 0:00:04]} 60. Kd5 {[%clk 0:00:14]}  Rd2+ {[%clk 0:00:05]} 61. Ke6 {[%clk 0:00:14]}  Re2+ {[%clk 0:00:05]} 62. Kf5 {[%clk 0:00:14]}  Rf2+ {[%clk 0:00:06]} 63. Kg4 {[%clk 0:00:15]}  Ke8 {[%clk 0:00:06]} 64. Ra8+ {[%clk 0:00:15]}  Kf7 {[%clk 0:00:04]} 65. c7 {[%clk 0:00:15]}  Rc2 {[%clk 0:00:04]} 66. h4 {[%clk 0:00:16]}  Rc4+ {[%clk 0:00:04]} 67. Kg3 {[%clk 0:00:16]}  Ke6 {[%clk 0:00:04]} 68. Rxa2 {[%clk 0:00:16]}  Kxd6 {[%clk 0:00:05]} 69. Ra7 {[%clk 0:00:14]}  Kd7 {[%clk 0:00:05]} 70. h5 {[%clk 0:00:14]}  Rd4 {[%clk 0:00:04]} 71. Kh3 {[%clk 0:00:14]}  Rc4 {[%clk 0:00:04]} 72. h6 {[%clk 0:00:13]}  Rc6 {[%clk 0:00:04]} 73. c8=Q+ {[%clk 0:00:12]}  Kxc8 {[%clk 0:00:04]} 74. h7 {[%clk 0:00:04]}  Rh6+ {[%clk 0:00:04]} 75. Kg4 {[%clk 0:00:05]}  Kb8 {[%clk 0:00:04]} 76. Rg7 {[%clk 0:00:06]} 1-0


[Site "https://www.chess.com"]

[Event "Titled Tuesday Blitz January 10 Late 2023"]
[White "Goncalves, Davi Sulzbacher"]
[Black "Jakubowski, Krzysztof"]
[WhiteFideId "2154510"]
[BlackFideId "1112848"]
[WhiteElo "2282"]
[BlackElo "2486"]
[Result "1-0"]
[Round "08"]
[TimeControl "180+2"]
[Date "2023.01.10"]
[WhiteClock "0:00:36"]
[BlackClock "0:00:45"]

1. Nf3 {[%clk 0:00:00]}  Nf6 {[%clk 0:00:00]} 2. e3 {[%clk 0:03:00]}  g6 {[%clk 0:02:58]} 3. d4 {[%clk 0:03:01]}  Bg7 {[%clk 0:02:57]} 4. Be2 {[%clk 0:03:01]}  O-O {[%clk 0:02:57]} 5. O-O {[%clk 0:03:02]}  d6 {[%clk 0:02:58]} 6. c4 {[%clk 0:03:02]}  Nbd7 {[%clk 0:02:58]} 7. Nc3 {[%clk 0:03:03]}  e5 {[%clk 0:02:59]} 8. b3 {[%clk 0:03:03]}  Re8 {[%clk 0:03:00]} 9. Bb2 {[%clk 0:03:00]}  e4 {[%clk 0:03:00]} 10. Nd2 {[%clk 0:03:00]}  Nf8 {[%clk 0:03:00]} 11. Qc2 {[%clk 0:03:00]}  Bf5 {[%clk 0:02:59]} 12. h3 {[%clk 0:02:59]}  h5 {[%clk 0:02:57]} 13. Nd5 {[%clk 0:02:55]}  N8h7 {[%clk 0:02:56]} 14. Nxf6+ {[%clk 0:02:47]}  Qxf6 {[%clk 0:02:54]} 15. Rab1 {[%clk 0:02:45]}  Qh4 {[%clk 0:02:51]} 16. d5 {[%clk 0:02:43]}  Ng5 {[%clk 0:02:37]} 17. Bxg7 {[%clk 0:02:22]}  Kxg7 {[%clk 0:02:34]} 18. Qc3+ {[%clk 0:02:19]}  f6 {[%clk 0:02:24]} 19. f4 {[%clk 0:02:17]}  Nxh3+ {[%clk 0:02:23]} 20. gxh3 {[%clk 0:02:04]}  Qg3+ {[%clk 0:02:21]} 21. Kh1 {[%clk 0:02:01]}  Qxh3+ {[%clk 0:02:21]} 22. Kg1 {[%clk 0:02:01]}  Qg3+ {[%clk 0:02:22]} 23. Kh1 {[%clk 0:02:02]}  Bh3 {[%clk 0:02:10]} 24. Rg1 {[%clk 0:02:02]}  Qh4 {[%clk 0:01:57]} 25. Rg2 {[%clk 0:01:44]}  g5 {[%clk 0:01:57]} 26. Rxg5+ {[%clk 0:01:44]}  Kf7 {[%clk 0:01:37]} 27. Rxh5 {[%clk 0:01:28]}  Bg2+ {[%clk 0:01:34]} 28. Kxg2 {[%clk 0:01:28]}  Rg8+ {[%clk 0:01:15]} 29. Kf1 {[%clk 0:01:27]}  Qg3 {[%clk 0:01:14]} 30. Qxf6+ {[%clk 0:00:49]}  Ke8 {[%clk 0:01:14]} 31. Qe6+ {[%clk 0:00:43]}  Kd8 {[%clk 0:00:45]} 32. Rg5 {[%clk 0:00:36]} 1-0


[Site "https://www.chess.com"]

[Event "Titled Tuesday Blitz January 10 Late 2023"]
[White "Yurovskykh, Oleksandr"]
[Black "Bozorov, Makhsum"]
[WhiteFideId "14134020"]
[BlackFideId "14201330"]
[WhiteElo "2328"]
[BlackElo "2145"]
[Result "1-0"]
[Round "08"]
[TimeControl "180+2"]
[Date "2023.01.10"]
[WhiteClock "0:01:34"]
[BlackClock "0:00:16"]

1. d4 {[%clk 0:00:00]}  Nf6 {[%clk 0:00:00]} 2. Nf3 {[%clk 0:02:59]}  g6 {[%clk 0:02:59]} 3. Bg5 {[%clk 0:02:56]}  Bg7 {[%clk 0:02:59]} 4. Nbd2 {[%clk 0:02:55]}  O-O {[%clk 0:02:59]} 5. c3 {[%clk 0:02:56]}  d6 {[%clk 0:02:57]} 6. e4 {[%clk 0:02:56]}  c5 {[%clk 0:02:47]} 7. d5 {[%clk 0:02:55]}  a6 {[%clk 0:02:45]} 8. a4 {[%clk 0:02:54]}  h6 {[%clk 0:02:40]} 9. Bh4 {[%clk 0:02:52]}  e6 {[%clk 0:02:30]} 10. dxe6 {[%clk 0:02:51]}  Bxe6 {[%clk 0:02:26]} 11. Bc4 {[%clk 0:02:48]}  Bxc4 {[%clk 0:02:24]} 12. Bxf6 {[%clk 0:02:47]}  Qxf6 {[%clk 0:02:08]} 13. Nxc4 {[%clk 0:02:42]}  Qe6 {[%clk 0:02:03]} 14. Qd5 {[%clk 0:02:42]}  Qxd5 {[%clk 0:01:48]} 15. exd5 {[%clk 0:02:42]}  Re8+ {[%clk 0:01:24]} 16. Kd1 {[%clk 0:02:42]}  Bf8 {[%clk 0:01:24]} 17. Nb6 {[%clk 0:02:25]}  Ra7 {[%clk 0:01:24]} 18. Re1 {[%clk 0:02:16]}  Rd8 {[%clk 0:01:22]} 19. a5 {[%clk 0:02:17]}  Nd7 {[%clk 0:01:15]} 20. Nxd7 {[%clk 0:02:13]}  Rxd7 {[%clk 0:01:15]} 21. Re8 {[%clk 0:02:13]}  Kg7 {[%clk 0:01:15]} 22. Nd2 {[%clk 0:02:14]}  Be7 {[%clk 0:01:03]} 23. Nc4 {[%clk 0:02:14]}  Bd8 {[%clk 0:00:58]} 24. Ra3 {[%clk 0:02:11]}  f5 {[%clk 0:00:58]} 25. Rb3 {[%clk 0:02:03]}  Kf7 {[%clk 0:00:55]} 26. Re6 {[%clk 0:01:59]}  Be7 {[%clk 0:00:55]} 27. Rb6 {[%clk 0:01:59]}  Ra8 {[%clk 0:00:32]} 28. Nxd6+ {[%clk 0:01:53]}  Bxd6 {[%clk 0:00:28]} 29. Rexd6 {[%clk 0:01:40]}  Re7 {[%clk 0:00:27]} 30. Rxg6 {[%clk 0:01:41]}  Rd8 {[%clk 0:00:25]} 31. Rbf6+ {[%clk 0:01:36]}  Ke8 {[%clk 0:00:23]} 32. Rg8+ {[%clk 0:01:36]}  Kd7 {[%clk 0:00:22]} 33. Rxd8+ {[%clk 0:01:36]}  Kxd8 {[%clk 0:00:22]} 34. Rxh6 {[%clk 0:01:37]}  Re5 {[%clk 0:00:22]} 35. c4 {[%clk 0:01:34]}  Re4 {[%clk 0:00:18]} 36. b3 {[%clk 0:01:34]}  Rf4 {[%clk 0:00:18]} 37. f3 {[%clk 0:01:34]}  Rd4+ {[%clk 0:00:16]} 38. Ke2 {[%clk 0:01:34]} 1-0


[Site "https://www.chess.com"]

[Event "Titled Tuesday Blitz January 10 Late 2023"]
[White "Kosakowski, Jakub"]
[Black "Stavri, Gligor"]
[WhiteFideId "1185080"]
[BlackFideId "4706013"]
[WhiteElo "2485"]
[BlackElo "1867"]
[Result "1-0"]
[Round "08"]
[TimeControl "180+2"]
[Date "2023.01.10"]
[WhiteClock "0:00:52"]
[BlackClock "0:00:02"]

1. e4 {[%clk 0:00:00]}  c5 {[%clk 0:00:00]} 2. Nf3 {[%clk 0:02:50]}  e6 {[%clk 0:02:59]} 3. d4 {[%clk 0:02:46]}  cxd4 {[%clk 0:02:57]} 4. Nxd4 {[%clk 0:02:46]}  Nc6 {[%clk 0:02:58]} 5. Nc3 {[%clk 0:02:46]}  Qc7 {[%clk 0:02:59]} 6. Be3 {[%clk 0:02:46]}  a6 {[%clk 0:02:59]} 7. Qf3 {[%clk 0:02:46]}  Ne5 {[%clk 0:02:59]} 8. Qg3 {[%clk 0:02:46]}  h5 {[%clk 0:02:58]} 9. Nf5 {[%clk 0:02:46]}  g6 {[%clk 0:02:59]} 10. Bd4 {[%clk 0:02:46]}  d6 {[%clk 0:02:52]} 11. f4 {[%clk 0:02:40]}  gxf5 {[%clk 0:02:41]} 12. fxe5 {[%clk 0:02:38]}  h4 {[%clk 0:02:32]} 13. Qf2 {[%clk 0:02:38]}  dxe5 {[%clk 0:02:22]} 14. Bb6 {[%clk 0:02:34]}  Qc6 {[%clk 0:02:20]} 15. O-O-O {[%clk 0:02:34]}  Be7 {[%clk 0:02:13]} 16. exf5 {[%clk 0:02:35]}  Nf6 {[%clk 0:02:10]} 17. Kb1 {[%clk 0:02:32]}  exf5 {[%clk 0:02:09]} 18. Bd3 {[%clk 0:02:28]}  e4 {[%clk 0:02:09]} 19. Be2 {[%clk 0:02:25]}  Be6 {[%clk 0:02:06]} 20. Rhf1 {[%clk 0:02:24]}  Rc8 {[%clk 0:02:05]} 21. Qd4 {[%clk 0:02:22]}  Rg8 {[%clk 0:01:58]} 22. Qf2 {[%clk 0:02:08]}  Ng4 {[%clk 0:01:47]} 23. Bxg4 {[%clk 0:01:48]}  Rxg4 {[%clk 0:01:35]} 24. Be3 {[%clk 0:01:43]}  Bf6 {[%clk 0:01:29]} 25. Bd4 {[%clk 0:01:41]}  Bxd4 {[%clk 0:01:23]} 26. Qxd4 {[%clk 0:01:33]}  Rg8 {[%clk 0:00:53]} 27. g4 {[%clk 0:01:34]}  Rxg4 {[%clk 0:00:51]} 28. Qh8+ {[%clk 0:01:29]}  Ke7 {[%clk 0:00:43]} 29. Qe5 {[%clk 0:01:16]}  Kf8 {[%clk 0:00:43]} 30. Rd6 {[%clk 0:01:16]}  Qc4 {[%clk 0:00:33]} 31. Rfd1 {[%clk 0:01:06]}  b5 {[%clk 0:00:31]} 32. a3 {[%clk 0:01:02]}  b4 {[%clk 0:00:14]} 33. Rd8+ {[%clk 0:01:01]}  Rxd8 {[%clk 0:00:13]} 34. Rxd8+ {[%clk 0:00:51]}  Ke7 {[%clk 0:00:13]} 35. Nd5+ {[%clk 0:00:52]}  Kxd8 {[%clk 0:00:13]} 36. Qd6+ {[%clk 0:00:52]}  Kc8 {[%clk 0:00:11]} 37. Nb6+ {[%clk 0:00:53]}  Kb7 {[%clk 0:00:09]} 38. Nxc4 {[%clk 0:00:53]}  Rg1+ {[%clk 0:00:10]} 39. Ka2 {[%clk 0:00:53]}  Bxc4+ {[%clk 0:00:04]} 40. b3 {[%clk 0:00:53]}  Be6 {[%clk 0:00:05]} 41. Qxb4+ {[%clk 0:00:54]}  Ka8 {[%clk 0:00:04]} 42. Qb6 {[%clk 0:00:53]}  Rg2 {[%clk 0:00:02]} 43. Qxa6+ {[%clk 0:00:53]}  Kb8 {[%clk 0:00:02]} 44. Kb2 {[%clk 0:00:53]}  f4 {[%clk 0:00:02]} 45. Qd6+ {[%clk 0:00:52]}  Kc8 {[%clk 0:00:02]} 46. Qxf4 {[%clk 0:00:52]} 1-0


[Site "https://www.chess.com"]

[Event "Titled Tuesday Blitz January 10 Late 2023"]
[White "Pakleza, Zbigniew"]
[Black "Sivakumar, Shaaketh"]
[WhiteFideId "1119290"]
[BlackFideId "30940176"]
[WhiteElo "2494"]
[BlackElo "2337"]
[Result "0-1"]
[Round "08"]
[TimeControl "180+2"]
[Date "2023.01.10"]
[WhiteClock "0:00:02"]
[BlackClock "0:00:47"]

1. a3 {[%clk 0:00:00]}  e6 {[%clk 0:00:00]} 2. h3 {[%clk 0:03:00]}  d5 {[%clk 0:03:00]} 3. g3 {[%clk 0:03:01]}  c5 {[%clk 0:02:57]} 4. d3 {[%clk 0:03:02]}  Nc6 {[%clk 0:02:57]} 5. e3 {[%clk 0:03:02]}  f5 {[%clk 0:02:58]} 6. c3 {[%clk 0:03:03]}  Nf6 {[%clk 0:02:58]} 7. b3 {[%clk 0:03:03]}  e5 {[%clk 0:02:58]} 8. f3 {[%clk 0:03:04]}  Nh5 {[%clk 0:02:59]} 9. Ne2 {[%clk 0:03:04]}  Qg5 {[%clk 0:02:55]} 10. h4 {[%clk 0:03:02]}  Qg6 {[%clk 0:02:51]} 11. Rg1 {[%clk 0:02:53]}  Bd6 {[%clk 0:02:50]} 12. Nd2 {[%clk 0:02:49]}  f4 {[%clk 0:02:49]} 13. e4 {[%clk 0:02:40]}  fxg3 {[%clk 0:02:45]} 14. exd5 {[%clk 0:02:25]}  Ne7 {[%clk 0:02:35]} 15. Ne4 {[%clk 0:02:21]}  Nf5 {[%clk 0:02:30]} 16. Kd2 {[%clk 0:02:18]}  Nxh4 {[%clk 0:02:23]} 17. Bg2 {[%clk 0:00:59]}  Nf4 {[%clk 0:02:20]} 18. Nxf4 {[%clk 0:00:59]}  exf4 {[%clk 0:02:15]} 19. Kc2 {[%clk 0:00:46]}  h5 {[%clk 0:02:14]} 20. Qe2 {[%clk 0:00:46]}  O-O {[%clk 0:02:08]} 21. Rh1 {[%clk 0:00:39]}  Nxg2 {[%clk 0:02:07]} 22. Qxg2 {[%clk 0:00:37]}  Be7 {[%clk 0:02:05]} 23. Bd2 {[%clk 0:00:38]}  Bf5 {[%clk 0:01:59]} 24. Rae1 {[%clk 0:00:16]}  h4 {[%clk 0:01:59]} 25. Bxf4 {[%clk 0:00:15]}  Bxe4 {[%clk 0:01:53]} 26. Rxe4 {[%clk 0:00:12]}  Rf7 {[%clk 0:01:37]} 27. d6 {[%clk 0:00:13]}  Bf6 {[%clk 0:01:38]} 28. Be5 {[%clk 0:00:10]}  Bxe5 {[%clk 0:01:18]} 29. Rxe5 {[%clk 0:00:10]}  Raf8 {[%clk 0:01:13]} 30. Re3 {[%clk 0:00:11]}  Qh6 {[%clk 0:01:12]} 31. Rhe1 {[%clk 0:00:04]}  Qxd6 {[%clk 0:01:07]} 32. Qh3 {[%clk 0:00:02]}  Qh6 {[%clk 0:01:02]} 33. Qg4 {[%clk 0:00:02]}  Rf4 {[%clk 0:00:57]} 34. Qh3 {[%clk 0:00:03]}  Rxf3 {[%clk 0:00:54]} 35. Rxf3 {[%clk 0:00:02]}  Rxf3 {[%clk 0:00:54]} 36. Re8+ {[%clk 0:00:02]}  Kh7 {[%clk 0:00:54]} 37. b4 {[%clk 0:00:03]}  Rf2+ {[%clk 0:00:53]} 38. Kb3 {[%clk 0:00:03]}  Qh5 {[%clk 0:00:51]} 39. Qc8 {[%clk 0:00:04]}  Qd5+ {[%clk 0:00:50]} 40. Ka4 {[%clk 0:00:02]}  Qc6+ {[%clk 0:00:48]} 41. Qxc6 {[%clk 0:00:02]}  bxc6 {[%clk 0:00:48]} 42. Re4 {[%clk 0:00:01]}  g5 {[%clk 0:00:49]} 43. Rg4 {[%clk 0:00:01]}  Kg6 {[%clk 0:00:48]} 44. bxc5 {[%clk 0:00:01]}  Rf4+ {[%clk 0:00:46]} 45. Rxf4 {[%clk 0:00:02]}  gxf4 {[%clk 0:00:46]} 46. d4 {[%clk 0:00:02]}  g2 {[%clk 0:00:47]} 0-1


[Site "https://www.chess.com"]

[Event "Titled Tuesday Blitz January 10 Late 2023"]
[White "Taboas Rodriguez, Daniel"]
[Black "Arenas, David"]
[WhiteFideId "2208466"]
[BlackFideId "4403177"]
[WhiteElo "2371"]
[BlackElo "2426"]
[Result "0-1"]
[Round "08"]
[TimeControl "180+2"]
[Date "2023.01.10"]
[WhiteClock "0:00:18"]
[BlackClock "0:00:25"]

1. d4 {[%clk 0:00:00]}  Nf6 {[%clk 0:00:00]} 2. Nf3 {[%clk 0:02:59]}  e6 {[%clk 0:02:58]} 3. c4 {[%clk 0:02:59]}  Bb4+ {[%clk 0:02:58]} 4. Nbd2 {[%clk 0:02:59]}  O-O {[%clk 0:02:54]} 5. a3 {[%clk 0:03:00]}  Be7 {[%clk 0:02:51]} 6. e4 {[%clk 0:03:00]}  d6 {[%clk 0:02:51]} 7. Bd3 {[%clk 0:03:00]}  Nbd7 {[%clk 0:02:51]} 8. O-O {[%clk 0:03:00]}  c5 {[%clk 0:02:51]} 9. d5 {[%clk 0:03:00]}  e5 {[%clk 0:02:50]} 10. b4 {[%clk 0:02:59]}  b6 {[%clk 0:02:49]} 11. Bc2 {[%clk 0:02:59]}  Ne8 {[%clk 0:02:49]} 12. Ba4 {[%clk 0:02:59]}  g6 {[%clk 0:02:39]} 13. Bc6 {[%clk 0:02:58]}  Rb8 {[%clk 0:02:40]} 14. Rb1 {[%clk 0:02:57]}  Ng7 {[%clk 0:02:40]} 15. Qa4 {[%clk 0:02:53]}  a6 {[%clk 0:02:28]} 16. bxc5 {[%clk 0:02:50]}  bxc5 {[%clk 0:02:25]} 17. Bb2 {[%clk 0:02:44]}  Nb6 {[%clk 0:02:25]} 18. Qa5 {[%clk 0:02:32]}  f5 {[%clk 0:02:15]} 19. Bc3 {[%clk 0:02:25]}  fxe4 {[%clk 0:02:08]} 20. Nxe4 {[%clk 0:02:24]}  Bf5 {[%clk 0:01:46]} 21. Nfd2 {[%clk 0:02:25]}  Nxc4 {[%clk 0:01:46]} 22. Rxb8 {[%clk 0:01:50]}  Qxb8 {[%clk 0:01:46]} 23. Qxa6 {[%clk 0:01:36]}  Nxd2 {[%clk 0:01:27]} 24. Nxd2 {[%clk 0:01:28]}  Nh5 {[%clk 0:01:20]} 25. a4 {[%clk 0:01:29]}  Nf4 {[%clk 0:01:12]} 26. g3 {[%clk 0:01:21]}  Bd3 {[%clk 0:01:11]} 27. Qb7 {[%clk 0:01:17]}  Qxb7 {[%clk 0:01:08]} 28. Bxb7 {[%clk 0:01:09]}  Ne2+ {[%clk 0:01:05]} 29. Kg2 {[%clk 0:01:10]}  Nxc3 {[%clk 0:01:05]} 30. Ra1 {[%clk 0:01:07]}  Rb8 {[%clk 0:01:05]} 31. Bc6 {[%clk 0:01:07]}  Ba6 {[%clk 0:01:02]} 32. a5 {[%clk 0:01:05]}  Ne2 {[%clk 0:00:59]} 33. Ne4 {[%clk 0:01:04]}  Nd4 {[%clk 0:00:57]} 34. Rd1 {[%clk 0:00:35]}  Be2 {[%clk 0:00:55]} 35. Re1 {[%clk 0:00:32]}  Bf3+ {[%clk 0:00:54]} 36. Kh3 {[%clk 0:00:30]}  Bxe4 {[%clk 0:00:51]} 37. Rxe4 {[%clk 0:00:31]}  Nxc6 {[%clk 0:00:50]} 38. dxc6 {[%clk 0:00:32]}  Bd8 {[%clk 0:00:38]} 39. a6 {[%clk 0:00:33]}  Ra8 {[%clk 0:00:38]} 40. Ra4 {[%clk 0:00:32]}  Kf7 {[%clk 0:00:37]} 41. a7 {[%clk 0:00:32]}  Ke6 {[%clk 0:00:35]} 42. Ra6 {[%clk 0:00:24]}  Bc7 {[%clk 0:00:32]} 43. Kg4 {[%clk 0:00:24]}  c4 {[%clk 0:00:32]} 44. Kf3 {[%clk 0:00:23]}  d5 {[%clk 0:00:31]} 45. Ke2 {[%clk 0:00:23]}  Kd6 {[%clk 0:00:30]} 46. f4 {[%clk 0:00:23]}  exf4 {[%clk 0:00:30]} 47. gxf4 {[%clk 0:00:22]}  d4 {[%clk 0:00:29]} 48. Kf3 {[%clk 0:00:23]}  Kc5 {[%clk 0:00:29]} 49. Ke4 {[%clk 0:00:23]}  d3 {[%clk 0:00:29]} 50. Ke3 {[%clk 0:00:23]}  Re8+ {[%clk 0:00:27]} 51. Kd2 {[%clk 0:00:22]}  Bxf4+ {[%clk 0:00:27]} 52. Kd1 {[%clk 0:00:21]}  Ra8 {[%clk 0:00:26]} 53. h4 {[%clk 0:00:20]}  c3 {[%clk 0:00:25]} 54. Ra5+ {[%clk 0:00:18]}  Kxc6 {[%clk 0:00:25]} 0-1


[Site "https://www.chess.com"]

[Event "Titled Tuesday Blitz January 10 Late 2023"]
[White "Fiorito, Francisco"]
[Black "Melikhov, Evgeny V."]
[WhiteFideId "180165"]
[BlackFideId "4122046"]
[WhiteElo "2305"]
[BlackElo "2269"]
[Result "1-0"]
[Round "08"]
[TimeControl "180+2"]
[Date "2023.01.10"]
[WhiteClock "0:01:11"]
[BlackClock "0:00:39"]

1. e4 {[%clk 0:00:00]}  e5 {[%clk 0:00:00]} 2. Nf3 {[%clk 0:03:00]}  Nc6 {[%clk 0:02:59]} 3. Bb5 {[%clk 0:03:01]}  a6 {[%clk 0:02:59]} 4. Ba4 {[%clk 0:03:01]}  Nf6 {[%clk 0:02:58]} 5. O-O {[%clk 0:03:01]}  Nxe4 {[%clk 0:02:58]} 6. Re1 {[%clk 0:03:01]}  Nc5 {[%clk 0:02:58]} 7. Bxc6 {[%clk 0:02:43]}  dxc6 {[%clk 0:02:58]} 8. Nxe5 {[%clk 0:02:32]}  Be7 {[%clk 0:02:56]} 9. d4 {[%clk 0:02:33]}  Ne6 {[%clk 0:02:55]} 10. c3 {[%clk 0:02:34]}  O-O {[%clk 0:02:54]} 11. Nd2 {[%clk 0:02:34]}  c5 {[%clk 0:02:54]} 12. dxc5 {[%clk 0:02:34]}  Nxc5 {[%clk 0:02:53]} 13. Ndf3 {[%clk 0:02:27]}  Qxd1 {[%clk 0:02:47]} 14. Rxd1 {[%clk 0:02:23]}  f6 {[%clk 0:02:45]} 15. Nd3 {[%clk 0:02:24]}  Nxd3 {[%clk 0:02:32]} 16. Rxd3 {[%clk 0:02:21]}  Bf5 {[%clk 0:02:31]} 17. Rd1 {[%clk 0:02:22]}  Rad8 {[%clk 0:02:18]} 18. Bf4 {[%clk 0:02:17]}  Bd6 {[%clk 0:02:08]} 19. Bxd6 {[%clk 0:02:16]}  Rxd6 {[%clk 0:02:00]} 20. Rxd6 {[%clk 0:02:15]}  cxd6 {[%clk 0:02:00]} 21. Re1 {[%clk 0:02:15]}  Kf7 {[%clk 0:02:00]} 22. Nd4 {[%clk 0:02:16]}  Bd7 {[%clk 0:01:58]} 23. f3 {[%clk 0:02:16]}  Re8 {[%clk 0:01:58]} 24. Rxe8 {[%clk 0:02:16]}  Kxe8 {[%clk 0:01:56]} 25. Kf2 {[%clk 0:02:15]}  Ke7 {[%clk 0:01:56]} 26. Ke3 {[%clk 0:02:16]}  Bc8 {[%clk 0:01:53]} 27. h4 {[%clk 0:02:16]}  h6 {[%clk 0:01:41]} 28. Ke4 {[%clk 0:02:17]}  g5 {[%clk 0:01:40]} 29. h5 {[%clk 0:02:13]}  Bd7 {[%clk 0:01:35]} 30. Nf5+ {[%clk 0:02:07]}  Ke6 {[%clk 0:01:33]} 31. Nxh6 {[%clk 0:02:03]}  f5+ {[%clk 0:01:31]} 32. Ke3 {[%clk 0:01:56]}  f4+ {[%clk 0:01:24]} 33. Kf2 {[%clk 0:01:47]}  Kf6 {[%clk 0:01:23]} 34. g4 {[%clk 0:01:43]}  fxg3+ {[%clk 0:01:06]} 35. Kxg3 {[%clk 0:01:41]}  Be6 {[%clk 0:01:03]} 36. Kf2 {[%clk 0:01:40]}  Bxa2 {[%clk 0:01:03]} 37. Ke3 {[%clk 0:01:38]}  Be6 {[%clk 0:01:02]} 38. Ng4+ {[%clk 0:01:38]}  Kf5 {[%clk 0:00:57]} 39. Nf2 {[%clk 0:01:37]}  Bf7 {[%clk 0:00:56]} 40. Ne4 {[%clk 0:01:15]}  Ke5 {[%clk 0:00:54]} 41. h6 {[%clk 0:01:15]}  Bg6 {[%clk 0:00:43]} 42. Nxg5 {[%clk 0:01:14]}  Kf6 {[%clk 0:00:42]} 43. f4 {[%clk 0:01:14]}  Bf5 {[%clk 0:00:41]} 44. Kd4 {[%clk 0:01:11]}  Kg6 {[%clk 0:00:39]} 45. h7 {[%clk 0:01:11]}  Kg7 {[%clk 0:00:39]} 46. Kd5 {[%clk 0:01:11]} 1-0


[Site "https://www.chess.com"]